Cogmind - Beta 10.2 *** ADVENTURER MODE // 2021.06.12 @ 09:18:52 Player: COLTRANE Result: Destroyed by as-16425 with Assembled Heavy Rifle Performance ------------- Evolutions (0) 0 Regions Visited (4) 800 Robots Destroyed (18) 90 Value Destroyed (360) 360 Prototype IDs (0) 0 Alien Tech Used (0) 0 Bonus (0) 0 TOTAL SCORE: 1250 Bonus ------- None Cogmind --------- Core Integrity 0/250 Matter 70/300 Energy 99/100 System Corruption 0% Temperature Cool (0) Movement Core (100) Ox1 Location -9/Mines Parts ------- > --- POWER (1) -------- (None) > --- PROPULSION (2) --- (None) > --- UTILITY (2) ------ Light Armor Plating Light Armor Plating > --- WEAPON (2) ------- (None) > --- INVENTORY (4) ---- Aluminum Leg Improved Aluminum Leg Grenade Launcher Mining Laser Peak State ------------ > --- POWER ------------ Light Ion Engine > --- PROPULSION ------- Light Treads Light Treads > --- UTILITY ---------- Light Armor Plating Light Armor Plating > --- WEAPON ----------- Grenade Launcher Rocket Launcher > --- INVENTORY -------- Light Armor Plating Light Armor Plating Mining Laser [Rating: 8] Favorites ----------- Power Light Ion Engine Engine Light Ion Engine Propulsion Light Treads Treads Light Treads Leg Aluminum Leg Wheel Wheel Utility Light Armor Plating Device ECM Suite Protection Light Armor Plating Weapon Grenade Launcher Ballistic Gun Assault Rifle Launcher Grenade Launcher Special Weapon Mining Laser Build | -11 -10 -10 -10 -9 ------- Run | Scr Mat Min Exi Min Slots Evolved . | . . . . . Power . | . . . . . Propulsion . | . . . . . Utility . | . . . . . Weapon . | . . . . . Parts Attached 26 | 4 15 3 . 4 Power 4 | 1 2 1 . . Engine 4 | 1 2 1 . . Core . | . . . . . Reactor . | . . . . . Propulsion 6 | 2 4 . . . Treads 2 | . 2 . . . Leg 1 | . 1 . . . Wheel 3 | 2 1 . . . Hover . | . . . . . Flight . | . . . . . Utility 7 | . 5 . . 2 Device 3 | . 3 . . . Storage . | . . . . . Processor . | . . . . . Hackware . | . . . . . Protection 4 | . 2 . . 2 Artifact . | . . . . . Weapon 9 | 1 4 2 . 2 Energy Gun . | . . . . . Energy Cannon . | . . . . . Ballistic Gun 1 | 1 . . . . Ballistic Cannon . | . . . . . Launcher 7 | . 4 2 . 1 Special Weapon 1 | . . . . 1 Impact Weapon . | . . . . . Slashing Weapon . | . . . . . Piercing Weapon . | . . . . . Special Melee Weapon . | . . . . . Unidentified Prototypes . | . . . . . Parts Lost 10 | . 4 . . 6 Power 2 | . 1 . . 1 Propulsion 4 | . 2 . . 2 Utility 3 | . 1 . . 2 Weapon 1 | . . . . 1 Highest Loss Streak 6 | . 4 . . 6 Average Slot Usage (%) 79 | . 68 93 100 60 Engine 13 | . 13 14 14 6 Treads 18 | . 11 28 28 14 Wheel 3 | . 6 . . . Device 2 | . 4 . . . Protection 21 | . 16 28 28 25 Ballistic Gun 1 | . 2 . . . Launcher 18 | . 13 21 28 13 Naked Turns 5 | . . . . 5 Heaviest Build 16 | 5 14 15 15 16 Greatest Support 40 | 20 40 40 40 40 Greatest Overweight (x) 3 | . 3 . . 1 Average Overweight (x) . | . . . . . Largest Inventory Capacity 4 | 4 4 4 4 4 Average Capacity 4 | 4 4 4 4 4 Most Carried 4 | 3 4 4 3 4 Average Carried 2 | . 2 2 3 2 Final Capacity 4 | 4 4 4 4 4 Final Carried 4 | . 2 3 3 4 Class Distribution -------------------- 100% | Mutant Dominant Class ---------------- Mutant | -10/Materials Mutant | -10/Mines Mutant | -10/Exiles Mutant | -9/Mines Resources | -11 -10 -10 -10 -9 ----------- Run | Scr Mat Min Exi Min Matter Collected 415 | 34 194 38 . 149 Remotely . | . . . . . Salvage Created 411 | . 317 . . 94 Parts 43 | . 36 . . 7 Haulers Intercepted 1 | . 1 . . . Recyclers Shooed 1 | . 1 . . . Parts Field Recycled . | . . . . . Retrieved Matter . | . . . . . Parts Self-Destructed . | . . . . . Prevented . | . . . . . Kills | -11 -10 -10 -10 -9 ------- Run | Scr Mat Min Exi Min Combat Hostiles Destroyed 12 | . 8 . . 4 Cannons 1 | . . . . 1 AOE 11 | . 8 . . 3 Classes Destroyed 9 | . 7 . . 2 Worker 1 | . 1 . . . Builder 2 | . 1 . . 1 Hauler 1 | . 1 . . . Recycler 2 | . 2 . . . Watcher 2 | . 2 . . . Swarmer 3 | . 3 . . . Grunt 6 | . 5 . . 1 Brawler 1 | . . . . 1 Assembled 2 | . . . . 2 Best Kill Streak 7 | . 7 . . 4 Combat Bots Only 6 | . 6 . . 3 Max Kills in Single Turn 2 | . 2 . . 1 Gunslinging . | . . . . . Exploded 2 | . 2 . . 1 Melee . | . . . . . Uniques/NPCs Destroyed . | . . . . . Combat | -11 -10 -10 -10 -9 -------- Run | Scr Mat Min Exi Min Damage Taken 1175 | . 307 . . 868 Core 253 | . 69 . . 184 Absorbed by Shields . | . . . . . Core Remaining (%) 100 | 100 . . . . Volleys Fired 24 | . 16 . . 8 Largest 2 | . 2 . . 2 Hottest 100 | . 50 . . 100 Shots Fired 28 | . 19 . . 9 Gun 4 | . 4 . . . Cannon . | . . . . . Launcher 23 | . 15 . . 8 Special 1 | . . . . 1 Kinetic 4 | . 4 . . . Thermal 1 | . . . . 1 Explosive 23 | . 15 . . 8 Electromagnetic . | . . . . . Robot Hit Streak 18 | . 15 . . 18 Robot Miss Streak 2 | . . . . 2 Penetration Max . | . . . . . Secondary Targets . | . . . . . Shots Hit Robots 22 | . 15 . . 7 Core Hits 38 | . 24 . . 14 Critical Hits . | . . . . . Critical Kills . | . . . . . Critical Parts Destroyed . | . . . . . Melee Attacks . | . . . . . Impact . | . . . . . Slashing . | . . . . . Piercing . | . . . . . Sneak Attacks . | . . . . . Combat Hostiles . | . . . . . Follow-up Attacks . | . . . . . Damage Inflicted 1253 | . 943 . . 310 Guns 51 | . 51 . . . Cannons . | . . . . . Explosions 1175 | . 889 . . 286 Melee . | . . . . . Ramming 3 | . 3 . . . Kinetic 51 | . 51 . . . Thermal 24 | . . . . 24 Explosive 1175 | . 889 . . 286 Electromagnetic . | . . . . . Impact . | . . . . . Slashing . | . . . . . Piercing . | . . . . . Highest Corruption . | . . . . . Average Corruption . | . . . . . Corruption Purged . | . . . . . Overload Shots . | . . . . . Overflow Damage 52 | . 52 . . . Projectiles . | . . . . . Explosions 52 | . 52 . . . Melee . | . . . . . Knockbacks . | . . . . . Impact . | . . . . . Kinetic . | . . . . . Secondary . | . . . . . Self-Inflicted Damage 86 | . 61 . . 25 Shots 7 | . 5 . . 2 Rammed 5 | . 5 . . . Targets Rammed 5 | . 5 . . . Kicked . | . . . . . Crushed . | . . . . . Highest Temperature 13 | . 7 . . 13 Average Temperature 3 | . 2 . . 5 Received Heat Transfer 123 | . 69 . . 54 Siege Activations . | . . . . . Robots Corrupted . | . . . . . Combat Hostiles . | . . . . . Parts Fried . | . . . . . Impact Corruptions . | . . . . . Robots Melted . | . . . . . Combat Hostiles . | . . . . . Parts Melted . | . . . . . Heat Transferred 50 | . . . . 50 Parts Sabotaged . | . . . . . Parts Stolen . | . . . . . Parts Stripped . | . . . . . Power Chain Reactions . | . . . . . Missiles Intercepted . | . . . . . Alert | -11 -10 -10 -10 -9 ------- Run | Scr Mat Min Exi Min Peak Influence 241 | . 241 5 . 55 Initial 5 | . . 5 . . Average 44 | . 55 5 . 18 Maximum Alert Level 1 | . 1 . . . Low Security (%) 92 | 100 90 100 . 100 Level 1 7 | . 9 . . . Level 2 . | . . . . . Level 3 . | . . . . . Level 4 . | . . . . . Level 5 . | . . . . . High Security . | . . . . . Max Security . | . . . . . Squads Dispatched 2 | . 2 . . . Investigation 2 | . 2 . . . Extermination . | . . . . . Reinforcement . | . . . . . Assault . | . . . . . Garrison . | . . . . . Intercept . | . . . . . Construction Impeded . | . . . . . Haulers Reinforced . | . . . . . Stealth | -11 -10 -10 -10 -9 --------- Run | Scr Mat Min Exi Min Distress Signals 1 | . 1 . . . Communications Jammed . | . . . . . Distress Signals . | . . . . . Times Spotted 34 | . 20 . . 14 Peak Tracking Total 9 | . 9 . . 6 Tactical Retreats 2 | . . . . 2 Traps | -11 -10 -10 -10 -9 ------- Run | Scr Mat Min Exi Min Traps Triggered 1 | . 1 . . . Indirectly . | . . . . . Trap Hack Attempts . | . . . . . Triggered . | . . . . . Disarmed . | . . . . . Reprogrammed . | . . . . . Reused . | . . . . . Traps Extracted . | . . . . . Installed . | . . . . . Triggered . | . . . . . Machines | -11 -10 -10 -10 -9 ---------- Run | Scr Mat Min Exi Min Machines Disabled 2 | . 2 . . . Max in Single Turn 2 | . 2 . . . Machines Sabotaged . | . . . . . Garrisons Compromised . | . . . . . Overloaded Fab Kills . | . . . . . Fab Network Shutdowns . | . . . . . Hacking | -11 -10 -10 -10 -9 --------- Run | Scr Mat Min Exi Min Machines Accessed 9 | . 5 . 4 . Terminals 5 | . 5 . . . Fabricators . | . . . . . Repair Stations . | . . . . . Recycling Units . | . . . . . Scanalyzers . | . . . . . Garrison Access . | . . . . . Total Hacks 49 | . 14 . 35 . Successful 43 | . 8 . 35 . Failed 6 | . 6 . . . Catastrophic . | . . . . . Database Lockouts . | . . . . . Manual 19 | . 14 . 5 . Terminals 14 | . 14 . . . Fabricators . | . . . . . Repair Stations . | . . . . . Recycling Units . | . . . . . Scanalyzers . | . . . . . Garrison Access . | . . . . . Terminal Hacks 43 | . 8 . 35 . Record 38 | . 3 . 35 . Terminal Index 1 | . 1 . . . Security Status 1 | . 1 . . . Transport Status 1 | . 1 . . . Hauler Manifests 1 | . 1 . . . Zone Layout 1 | . 1 . . . Fabricator Hacks . | . . . . . Repair Station Hacks . | . . . . . Recycling Unit Hacks . | . . . . . Scanalyzer . | . . . . . Garrison Access Hacks . | . . . . . Unauthorized Hacks . | . . . . . Terminals . | . . . . . Fabricators . | . . . . . Repair Stations . | . . . . . Recycling Units . | . . . . . Scanalyzers . | . . . . . Garrison Access . | . . . . . Data Cores Recovered . | . . . . . Used . | . . . . . Hacking Detections 4 | . 4 . . . Full Trace Events 4 | . 4 . . . Feedback Events . | . . . . . Feedback Blocked . | . . . . . Robot Schematics Acquired . | . . . . . Robots Built . | . . . . . Matter . | . . . . . Time . | . . . . . Total Robot Build Rating . | . . . . . Part Schematics Acquired . | . . . . . Parts Built . | . . . . . Matter . | . . . . . Time . | . . . . . Total Part Build Rating . | . . . . . Parts Repaired . | . . . . . Time . | . . . . . Parts Recycled . | . . . . . Recycled Matter . | . . . . . Retrieved Matter . | . . . . . Retrieved Components . | . . . . . Parts Scanalyzed . | . . . . . Part Schematics Acquired . | . . . . . Parts Damaged . | . . . . . Bothacking | -11 -10 -10 -10 -9 ------------ Run | Scr Mat Min Exi Min Used RIF Installer . | . . . . . Robots Hacked . | . . . . . Non-combat . | . . . . . Combat . | . . . . . Robot Hacks Applied . | . . . . . Relay Couplers Released . | . . . . . Robots Rewired . | . . . . . Allies Hacked . | . . . . . Hacks Repelled . | . . . . . Allies | -11 -10 -10 -10 -9 -------- Run | Scr Mat Min Exi Min Total Allies 1 | . . 1 . . Largest Group 1 | . . 1 1 . Highest-Rated Group 31 | . . 31 31 . Highest-Rated Ally 31 | . . 31 31 . Total Orders . | . . . . . Ally Attacks . | . . . . . Total Damage . | . . . . . Kills . | . . . . . Allies Corrupted . | . . . . . Allies Melted . | . . . . . Intel | -11 -10 -10 -10 -9 ------- Run | Scr Mat Min Exi Min Robot Analysis Total . | . . . . . Derelict Logs Recovered 1 | . . 1 . . Drone Launches . | . . . . . Drone Recoveries . | . . . . . Exploration | -11 -10 -10 -10 -9 ------------- Run | Scr Mat Min Exi Min Turns Passed 2487 | 32 1281 172 778 224 Spaces Moved 1655 | 34 873 102 487 159 Core 264 | 10 158 . . 96 Treads 1004 | . 352 102 487 63 Legs 7 | . 7 . . . Wheels 380 | 24 356 . . . Hover . | . . . . . Flight . | . . . . . Fastest Speed 50 | 50 80 160 160 50 Average Speed 141 | 71 135 160 160 122 Slowest Speed 200 | 80 200 160 160 160 Overloaded Moves . | . . . . . Propulsion Burnouts . | . . . . . Robots Hopped . | . . . . . Cave-ins Triggered . | . . . . . Exploration Rate (%) 48 | 4 77 32 89 38 Regions Visited 4 Branch Regions 3 Pre-discovered Areas . | . . . . . Known Exits Taken . | . . . . . Unknown Exits Taken 4 | 1 1 1 1 . Scrap Searched 1 | . . 1 . . Spaces Dug . | . . . . . Terrain Destroyed 131 | . 85 . . 46 Melee . | . . . . . Projectile . | . . . . . AOE 131 | . 85 . . 46 Terrain Rammed . | . . . . . Walls Destroyed . | . . . . . Machines Disabled . | . . . . . Actions | -11 -10 -10 -10 -9 --------- Run | Scr Mat Min Exi Min Total 1773 | 41 955 112 486 179 Wait 18 | . 18 . . . Move 1651 | 33 872 101 486 159 Hop . | . . . . . Pick Up 31 | 4 18 4 . 5 Fast Attach . | . . . . . Attach 26 | 4 15 3 . 4 Detach 1 | . 1 . . . Swap . | . . . . . Drop 15 | . 10 2 . 3 Fire 24 | . 16 . . 8 Melee . | . . . . . Ram . | . . . . . Kick . | . . . . . Crush 5 | . 5 . . . Escape Stasis . | . . . . . Rewire 2 | . . 2 . . Trap . | . . . . . Miscellaneous . | . . . . . Route ------- -11/Scrapyard -10/Materials (discovered 3 exits: [*Mat x2] / [*Min]) -10/Mines (discovered 2 exits: [*Mat] / *Exi) -10/Exiles -9/Mines (discovered 1 exit: [*Mat]) History --------- Turn | Location | Event 8 | -11/Scrapyard | Discovered new exit (range 15) 33 | -11/Scrapyard | Entered Materials 170 | -10/Materials | Discovered new exit (range 13) 282 | -10/Materials | Discovered new exit (range 16) 320 | -10/Materials | Build established: Mutant 337 | -10/Materials | Lost 4 parts (1p2n1u) 671 | -10/Materials | Discovered new exit (range 13) 1314 | -10/Materials | Entered Mines 1329 | -10/Mines | Discovered new exit (range 9) 1333 | -10/Mines | YI-UF0 nonchalantly dropped a Grenade Launcher on the ground 1359 | -10/Mines | Learned Materials terminal intel 1454 | -10/Mines | Received a Mining Laser from a helpful Derelict 1476 | -10/Mines | Deemed a non-threat by the Exiles lab entrance 1478 | -10/Mines | Discovered new exit (range 5) 1486 | -10/Mines | Entered Exiles 1486 | -10/Exiles | Accompanied by 1 ally 1526 | -10/Exiles | Met 8R-AWN 1552 | -10/Exiles | Met EX-HEX 1605 | -10/Exiles | Met EX-BIN 1797 | -10/Exiles | Met EX-DEC 1897 | -10/Exiles | Visited The Gauntlet 2139 | -10/Exiles | Discovered new exit (range 14) 2264 | -10/Exiles | Entered Mines 2289 | -9/Mines | Received a Rocket Launcher from a helpful Derelict 2345 | -9/Mines | Assembled infested the area 2380 | -9/Mines | Core integrity fell below 50% 2390 | -9/Mines | Core integrity fell below 20% 2420 | -9/Mines | Lost 6 parts (1p2n2u1w) 2446 | -9/Mines | Discovered new exit (range 11) 2488 | -9/Mines | Destroyed by as-16425 with Assembled Heavy Rifle Last Messages --------------- 02385_ Acquired 1 matter. 02387_ as-71386 destroyed. 02388_ The unstable cave ceiling collapses. 02389_ Mining Laser destroyed. 02401_ The unstable cave ceiling collapses. 02406_ as-43511 destroyed. 02421_ U-05 Engineer builds a Wall. 02425_ U-05 Engineer lays Concrete. 02429_ U-05 Engineer builds a Wall. 02429_ U-05 Engineer lays Concrete. 02434_ U-05 Engineer builds a Wall. 02435_ Acquired 52 matter. 02441_ The unstable cave ceiling collapses. 02446_ EXIT=FOUND 02450_ K-01 Serf collects debris. 02462_ Acquired Imp. Aluminum Leg. 02471_ Acquired Aluminum Leg. 02475_ Acquired Grenade Launcher. 02478_ Acquired Mining Laser. 02487_ K-01 Serf destroyed. Map ----- +----------------------------------------------------+ | | | | | | | | | | | | | | | | | ?????????????????????????????????????????????????? | | ?????????????????????????????????????????????????? | | ?????????????????????????????????????????????????? | | ?????????????????????????????????????????????????? | | ?????????????????????????????????????????????????? | | ?????????????????????????????????????????????????? | | ?????????????????????????????????########????????? | | ?????????????????????????????????# ########## | | ?????????????????????????????????# | | ?????????????????????????????????# ######### | | ?????????????????????????????????# #???????# | | ?????????????????????????????????# #???????# | | ???????????????????#?????####????# #???????# | | ???????????????????# ???## ##???# ####????# | | ???????????????????# #### ##??#### ### ##??## | | ???????????????????# ####### ## #### | | ???????????????????# < %==% ## | | ?????????????????###### @ a * | | ????????????????## #### ######## | | ???????????#????# ### ##??????# | | ???????????# ### % ##???????## | | ???????????# ###?????????### | | ???????????# ##?????????????# | | ???????????######## #??????????????## # | | ??????????????????## ##???############ ## | | ???????????????????### ##????# ## | | ?????????????????????# #?????# # | | ?????????????????????# ?? ######### | | ?????????????????????####???????????????## # | | ???????????????????????????????????????#### ## | | ???????????????????????????????????????# # # # | | ???????????????????????????????????????# # # | | ???????????????????????????????????????# ## ## | | ???????????????????????????????????????## # #? | | ???????????????????????????????????????# ## | | ??????????????????????????????????##???# # | | ?????????????????????????????????## #??## # | | ?????????????????????????????????# #?## ## ## | | ?????????????????????????????????# ## ## ## | | ??????????????????????????????????# # | | ??????????????????????????????????### # ## | | ????????????????????????????????????## %## ##? | +----------------------------------------------------+ Best States ------------- Heat Dissipation 25 Energy Generation 10 Energy Capacity 250 Matter Stores 134 Matter Capacity 300 Sight Range 16 Terrain Scan Density 10 ECM Strength 2 Armor Coverage 300 Resistance: KI 20 Resistance: TH 20 Resistance: EX 20 Resistance: EM 20 Resistance: I 20 Resistance: S 20 Resistance: P 20 Evasion (%) 50 Recoil Reduction 2 Offensive Hacking 10 Item Schematics ----------------- None Robot Schematics ------------------ None Fabricated ------------ Nothing Alien Tech Used ----------------- None Achievements -------------- None Challenges ------------ None Game ------ Seed BottomlessMomentumCannon Manual? 0 Play Time 00:26:49 Cumulative 16.7 hours Start 2021.05.26 @ 15:25:18 End 2021.06.12 @ 09:18:52 Sessions 8 Manual Loads 0 Difficulty Adventurer Special Mode None Game No. 47 Rogue 7 Adventurer 14 Explorer 26 Win Type - Total 0 Types 0/0/0/0/0/0/0/0/0 Lore% 14 Gallery% 26 Achievement% 19 Wizard Run 0 Options --------- ASCII 0 Keyboard 0 Movement Mouse Keybinds 0 Fullscreen 1 Font 18/SmallcapsGlow Map View 76x50 Tactical HUD 1 Map Filters NONE Filters NONE Steam 1 RUN: 90f83e8a-2641-4082-8988-62513617a0c3